[Event "*** Titled Tuesday Blitz"]
[Site "Chess.com"]
[Date "2021.02.16"]
[Round "11"]
[White "davigator"]
[Black "WPWPWP-2015"]
[Result "1-0"]
[WhiteElo "2389"]
[BlackElo "2465"]
[TimeControl "180+1"]
[EndTime "12:11:51 PST"]
[Termination "davigator won on time"]

1. e4 {[%clk 0:02:53]} 1... e5 {[%clk 0:02:57.6]} 2. Nf3 {[%clk 0:02:52.2]} 2...
Nf6 {[%clk 0:02:56.9]} 3. Nxe5 {[%clk 0:02:51]} 3... d6 {[%clk 0:02:56.6]} 4.
Nf3 {[%clk 0:02:50.6]} 4... Nxe4 {[%clk 0:02:56.7]} 5. d4 {[%clk 0:02:51.1]}
5... d5 {[%clk 0:02:57.1]} 6. Bd3 {[%clk 0:02:51.7]} 6... Bf5 {[%clk 0:02:57.2]}
7. O-O {[%clk 0:02:51]} 7... Be7 {[%clk 0:02:55]} 8. Re1 {[%clk 0:02:49.1]} 8...
O-O {[%clk 0:02:53.9]} 9. c4 {[%clk 0:02:43]} 9... c6 {[%clk 0:02:53.5]} 10. Qb3
{[%clk 0:02:40.9]} 10... Nd7 {[%clk 0:02:52.3]} 11. Bf4 {[%clk 0:02:38.9]} 11...
Nec5 {[%clk 0:02:49]} 12. dxc5 {[%clk 0:02:34.5]} 12... Nxc5 {[%clk 0:02:48.4]}
13. Bxf5 {[%clk 0:02:33.3]} 13... Nxb3 {[%clk 0:02:48.4]} 14. axb3 {[%clk
0:02:33.7]} 14... Bf6 {[%clk 0:02:46.9]} 15. Nc3 {[%clk 0:02:32.2]} 15... dxc4
{[%clk 0:02:41.2]} 16. bxc4 {[%clk 0:02:31.2]} 16... Qb6 {[%clk 0:02:40.6]} 17.
Rab1 {[%clk 0:02:25.5]} 17... g6 {[%clk 0:02:35.2]} 18. Be3 {[%clk 0:02:17.4]}
18... Qb4 {[%clk 0:02:22]} 19. Bd3 {[%clk 0:02:16]} 19... Rad8 {[%clk
0:02:20.1]} 20. Bf1 {[%clk 0:02:12.2]} 20... b6 {[%clk 0:02:09.6]} 21. Ne4
{[%clk 0:02:04.8]} 21... Bg7 {[%clk 0:02:09]} 22. Bd2 {[%clk 0:01:59.4]} 22...
Qa4 {[%clk 0:01:54.1]} 23. Bc3 {[%clk 0:01:57.8]} 23... Bxc3 {[%clk 0:01:51.8]}
24. Nxc3 {[%clk 0:01:57.6]} 24... Qc2 {[%clk 0:01:44.5]} 25. Re2 {[%clk
0:01:52.4]} 25... Qf5 {[%clk 0:01:40.2]} 26. Re7 {[%clk 0:01:46.4]} 26... a5
{[%clk 0:01:33.5]} 27. Rbe1 {[%clk 0:01:43.2]} 27... Qf6 {[%clk 0:01:28.4]} 28.
R7e3 {[%clk 0:01:36.1]} 28... h6 {[%clk 0:01:23.8]} 29. g3 {[%clk 0:01:31.8]}
29... Kg7 {[%clk 0:01:23.2]} 30. h4 {[%clk 0:01:30.8]} 30... Rd7 {[%clk
0:01:09.9]} 31. Ne5 {[%clk 0:01:29.5]} 31... Rc7 {[%clk 0:01:00.7]} 32. h5
{[%clk 0:01:28.5]} 32... gxh5 {[%clk 0:00:57.7]} 33. Rf3 {[%clk 0:01:25.4]}
33... Qg5 {[%clk 0:00:54.6]} 34. Bg2 {[%clk 0:01:17.9]} 34... f5 {[%clk
0:00:47.1]} 35. Rd3 {[%clk 0:01:07.5]} 35... Qf6 {[%clk 0:00:43.1]} 36. f4
{[%clk 0:01:03.5]} 36... h4 {[%clk 0:00:40.9]} 37. Ree3 {[%clk 0:00:57.3]} 37...
Kh7 {[%clk 0:00:38.8]} 38. Kh2 {[%clk 0:00:55.1]} 38... Rg8 {[%clk 0:00:38.2]}
39. c5 {[%clk 0:00:43.6]} 39... bxc5 {[%clk 0:00:34.2]} 40. Ne2 {[%clk
0:00:42.2]} 40... Rcg7 {[%clk 0:00:32.1]} 41. Bxc6 {[%clk 0:00:36.8]} 41...
hxg3+ {[%clk 0:00:31.3]} 42. Rxg3 {[%clk 0:00:31]} 42... Qh4+ {[%clk 0:00:30.7]}
43. Kg2 {[%clk 0:00:29.7]} 43... Rxg3+ {[%clk 0:00:28.9]} 44. Rxg3 {[%clk
0:00:29.5]} 44... Rxg3+ {[%clk 0:00:28.1]} 45. Nxg3 {[%clk 0:00:29.8]} 45...
Qxf4 {[%clk 0:00:27.9]} 46. Nf3 {[%clk 0:00:24.2]} 46... Qg4 {[%clk 0:00:17.6]}
47. Kf2 {[%clk 0:00:21.6]} 47... Qb4 {[%clk 0:00:15.4]} 48. Nxf5 {[%clk
0:00:18.3]} 48... Qxb2+ {[%clk 0:00:15.3]} 49. Kg3 {[%clk 0:00:18.9]} 49... Qf6
{[%clk 0:00:14.2]} 50. Be4 {[%clk 0:00:18.6]} 50... Kh8 {[%clk 0:00:12.3]} 51.
Kf4 {[%clk 0:00:19]} 51... a4 {[%clk 0:00:12.2]} 52. Ne5 {[%clk 0:00:18.9]}
52... a3 {[%clk 0:00:12.5]} 53. Ng4 {[%clk 0:00:18.8]} 53... a2 {[%clk
0:00:12.7]} 54. Nxf6 {[%clk 0:00:18.3]} 54... a1=Q {[%clk 0:00:12.7]} 55. Ng4
{[%clk 0:00:18.1]} 55... Qc1+ {[%clk 0:00:12.6]} 56. Kf3 {[%clk 0:00:17.8]}
56... Qd1+ {[%clk 0:00:09.5]} 57. Kf4 {[%clk 0:00:17.2]} 57... Qc1+ {[%clk
0:00:09.1]} 58. Kf3 {[%clk 0:00:17.4]} 58... h5 {[%clk 0:00:09.4]} 59. Nge3
{[%clk 0:00:15]} 59... Qh1+ {[%clk 0:00:08.6]} 60. Kf4 {[%clk 0:00:15.2]} 60...
Qh2+ {[%clk 0:00:08.6]} 61. Kg5 {[%clk 0:00:15.3]} 61... Qh3 {[%clk 0:00:05.9]}
62. Bd5 {[%clk 0:00:12.1]} 62... h4 {[%clk 0:00:05.4]} 63. Bf7 {[%clk
0:00:11.2]} 63... Qh2 {[%clk 0:00:03.4]} 64. Nxh4 {[%clk 0:00:08.5]} 64... Qg3+
{[%clk 0:00:03.3]} 65. Ng4 {[%clk 0:00:08.7]} 65... c4 {[%clk 0:00:03]} 66. Bxc4
{[%clk 0:00:07.3]} 66... Qc3 {[%clk 0:00:02.4]} 67. Be6 {[%clk 0:00:05.8]} 67...
Kh7 {[%clk 0:00:02.5]} 68. Nf5 {[%clk 0:00:05.9]} 68... Qc1+ {[%clk 0:00:01.7]}
69. Nge3 {[%clk 0:00:06.5]} 69... Qg1+ {[%clk 0:00:01.2]} 70. Kf4 {[%clk
0:00:07]} 70... Qh2+ {[%clk 0:00:01.2]} 71. Ke4 {[%clk 0:00:07.6]} 1-0

[Event "*** Titled Tuesday Blitz"]
[Site "Chess.com"]
[Date "2021.02.16"]
[Round "11"]
[White "NTBT_DHS"]
[Black "vaishali2001"]
[Result "1/2-1/2"]
[WhiteElo "2777"]
[BlackElo "2624"]
[TimeControl "180+1"]
[EndTime "12:11:53 PST"]
[Termination "Game drawn - insufficient material"]

1. d4 {[%clk 0:03:00.9]} 1... Nf6 {[%clk 0:02:59.2]} 2. c4 {[%clk 0:03:00.7]}
2... g6 {[%clk 0:02:58.1]} 3. Nf3 {[%clk 0:03:01.3]} 3... Bg7 {[%clk 0:02:58.1]}
4. Nc3 {[%clk 0:03:01.7]} 4... d5 {[%clk 0:02:58.5]} 5. cxd5 {[%clk 0:03:01.7]}
5... Nxd5 {[%clk 0:02:59.4]} 6. e4 {[%clk 0:03:02.4]} 6... Nxc3 {[%clk
0:02:59.7]} 7. bxc3 {[%clk 0:03:03.3]} 7... c5 {[%clk 0:02:58.5]} 8. Be3 {[%clk
0:03:03.3]} 8... Qa5 {[%clk 0:02:53.8]} 9. Qd2 {[%clk 0:03:01.7]} 9... O-O
{[%clk 0:02:54]} 10. Be2 {[%clk 0:03:00.2]} 10... cxd4 {[%clk 0:02:48]} 11. cxd4
{[%clk 0:03:01.1]} 11... Qxd2+ {[%clk 0:02:48.4]} 12. Bxd2 {[%clk 0:03:02]}
12... b6 {[%clk 0:02:48.8]} 13. Rc1 {[%clk 0:02:51.6]} 13... Ba6 {[%clk
0:02:44.6]} 14. Rc7 {[%clk 0:02:48.4]} 14... e6 {[%clk 0:02:14.9]} 15. e5 {[%clk
0:02:00.6]} 15... Bxe2 {[%clk 0:01:59.4]} 16. Kxe2 {[%clk 0:02:00.4]} 16... Na6
{[%clk 0:01:59.9]} 17. Rc4 {[%clk 0:01:56.6]} 17... Rfc8 {[%clk 0:01:42.2]} 18.
Ra4 {[%clk 0:01:43.8]} 18... Nc7 {[%clk 0:01:30.9]} 19. Rc1 {[%clk 0:01:42.5]}
19... Nb5 {[%clk 0:00:58.6]} 20. Rac4 {[%clk 0:01:38.6]} 20... Rxc4 {[%clk
0:00:47.1]} 21. Rxc4 {[%clk 0:01:39.5]} 21... a6 {[%clk 0:00:31.7]} 22. a4
{[%clk 0:01:37.1]} 22... Na3 {[%clk 0:00:21.4]} 23. Rc7 {[%clk 0:01:34.9]} 23...
b5 {[%clk 0:00:13.2]} 24. Ng5 {[%clk 0:01:25.2]} 24... bxa4 {[%clk 0:00:09.9]}
25. Nxf7 {[%clk 0:01:24.5]} 25... Nb5 {[%clk 0:00:09.5]} 26. Rd7 {[%clk
0:01:03.3]} 26... a3 {[%clk 0:00:09]} 27. Bc1 {[%clk 0:00:59.6]} 27... a2 {[%clk
0:00:06.6]} 28. Bb2 {[%clk 0:00:59.8]} 28... Rc8 {[%clk 0:00:05.1]} 29. Kd3
{[%clk 0:01:00]} 29... Rc1 {[%clk 0:00:04.2]} 30. Ng5 {[%clk 0:00:53.8]} 30...
a1=Q {[%clk 0:00:04.3]} 31. Bxa1 {[%clk 0:00:53.5]} 31... Rxa1 {[%clk
0:00:05.2]} 32. Rd8+ {[%clk 0:00:54.1]} 32... Bf8 {[%clk 0:00:05.2]} 33. Nxe6
{[%clk 0:00:54.8]} 33... Kf7 {[%clk 0:00:05.1]} 34. Nxf8 {[%clk 0:00:52.2]}
34... Rd1+ {[%clk 0:00:04.9]} 35. Ke3 {[%clk 0:00:51.3]} 35... Rxd4 {[%clk
0:00:04.6]} 36. e6+ {[%clk 0:00:51.4]} 36... Ke7 {[%clk 0:00:04.4]} 37. Ra8
{[%clk 0:00:48.1]} 37... Rd6 {[%clk 0:00:03.5]} 38. Ke4 {[%clk 0:00:28.9]} 38...
Nc7 {[%clk 0:00:03.3]} 39. Rc8 {[%clk 0:00:19.2]} 39... Nxe6 {[%clk 0:00:03.2]}
40. Nxh7 {[%clk 0:00:19.8]} 40... a5 {[%clk 0:00:02.5]} 41. Ra8 {[%clk
0:00:19.2]} 41... Nc5+ {[%clk 0:00:02.3]} 42. Ke3 {[%clk 0:00:18.9]} 42... Rd3+
{[%clk 0:00:02.5]} 43. Ke2 {[%clk 0:00:19.2]} 43... Ra3 {[%clk 0:00:03.2]} 44.
h4 {[%clk 0:00:18.4]} 44... Ra2+ {[%clk 0:00:03.5]} 45. Kf3 {[%clk 0:00:18.5]}
45... a4 {[%clk 0:00:04.2]} 46. g4 {[%clk 0:00:16.2]} 46... Nd3 {[%clk
0:00:04.6]} 47. h5 {[%clk 0:00:15.8]} 47... gxh5 {[%clk 0:00:04.3]} 48. gxh5
{[%clk 0:00:16.7]} 48... a3 {[%clk 0:00:04.5]} 49. Ng5 {[%clk 0:00:15.6]} 49...
Rxf2+ {[%clk 0:00:04]} 50. Kg3 {[%clk 0:00:15.2]} 50... Rf5 {[%clk 0:00:03.8]}
51. Kg4 {[%clk 0:00:14.9]} 51... Rf4+ {[%clk 0:00:04.3]} 52. Kg3 {[%clk
0:00:15.3]} 52... Rf5 {[%clk 0:00:04.7]} 53. Ra7+ {[%clk 0:00:11.7]} 53... Kf6
{[%clk 0:00:04.2]} 54. Ne4+ {[%clk 0:00:11.3]} 54... Ke5 {[%clk 0:00:04.7]} 55.
Nc3 {[%clk 0:00:08.5]} 55... Kd4 {[%clk 0:00:04.9]} 56. Ne2+ {[%clk 0:00:07.2]}
56... Ke3 {[%clk 0:00:04.9]} 57. Re7+ {[%clk 0:00:07.4]} 57... Kd2 {[%clk
0:00:04.8]} 58. h6 {[%clk 0:00:06.8]} 58... a2 {[%clk 0:00:04.7]} 59. Ra7 {[%clk
0:00:06.4]} 59... Nb4 {[%clk 0:00:03]} 60. Kg4 {[%clk 0:00:04.5]} 60... Rf7
{[%clk 0:00:02.8]} 61. Ra4 {[%clk 0:00:02.6]} 61... Kxe2 {[%clk 0:00:02.5]} 62.
Kg5 {[%clk 0:00:03.3]} 62... Kd3 {[%clk 0:00:02.8]} 63. Kg6 {[%clk 0:00:03.7]}
63... Rc7 {[%clk 0:00:03.4]} 64. h7 {[%clk 0:00:04.1]} 64... Rxh7 {[%clk
0:00:03]} 65. Kxh7 {[%clk 0:00:05]} 65... Kc2 {[%clk 0:00:03.1]} 66. Kg6 {[%clk
0:00:05.2]} 66... Kb3 {[%clk 0:00:03]} 67. Rxa2 {[%clk 0:00:04.7]} 67... Nxa2
{[%clk 0:00:03.9]} 1/2-1/2

[Event "*** Titled Tuesday Blitz"]
[Site "Chess.com"]
[Date "2021.02.16"]
[Round "11"]
[White "rychessmaster1"]
[Black "Danfii"]
[Result "0-1"]
[WhiteElo "2515"]
[BlackElo "2430"]
[TimeControl "180+1"]
[EndTime "12:11:56 PST"]
[Termination "Danfii won by resignation"]

1. d4 {[%clk 0:02:59.8]} 1... Nf6 {[%clk 0:02:59.8]} 2. Nc3 {[%clk 0:03:00.4]}
2... d5 {[%clk 0:02:59.6]} 3. Bf4 {[%clk 0:03:01.2]} 3... e6 {[%clk 0:02:59.9]}
4. Nb5 {[%clk 0:03:01.4]} 4... Na6 {[%clk 0:03:00.3]} 5. e3 {[%clk 0:03:01.7]}
5... c6 {[%clk 0:03:00.8]} 6. Nc3 {[%clk 0:03:02.1]} 6... Bd6 {[%clk 0:03:01.3]}
7. Bxd6 {[%clk 0:03:02.6]} 7... Qxd6 {[%clk 0:03:02.2]} 8. Bxa6 {[%clk
0:03:03.4]} 8... bxa6 {[%clk 0:03:02.1]} 9. Nf3 {[%clk 0:03:04.2]} 9... O-O
{[%clk 0:03:01.6]} 10. O-O {[%clk 0:03:04.7]} 10... c5 {[%clk 0:03:02.3]} 11.
Na4 {[%clk 0:03:05.4]} 11... c4 {[%clk 0:03:01.8]} 12. Nc5 {[%clk 0:03:05.2]}
12... Nd7 {[%clk 0:02:59.9]} 13. Nxd7 {[%clk 0:03:05.8]} 13... Bxd7 {[%clk
0:03:00.8]} 14. b3 {[%clk 0:03:04.9]} 14... Rfc8 {[%clk 0:02:59.6]} 15. Re1
{[%clk 0:03:03.5]} 15... a5 {[%clk 0:02:57.8]} 16. e4 {[%clk 0:02:52.1]} 16...
a4 {[%clk 0:02:53.5]} 17. e5 {[%clk 0:02:47.9]} 17... Qe7 {[%clk 0:02:53.4]} 18.
Re3 {[%clk 0:02:48]} 18... Rab8 {[%clk 0:02:41.7]} 19. h4 {[%clk 0:02:46.8]}
19... a5 {[%clk 0:02:21.3]} 20. Qd2 {[%clk 0:02:26.4]} 20... Rb4 {[%clk
0:01:59.3]} 21. Kh2 {[%clk 0:01:54.7]} 21... Rcb8 {[%clk 0:01:52.7]} 22. a3
{[%clk 0:01:41.7]} 22... R4b7 {[%clk 0:01:42]} 23. bxc4 {[%clk 0:01:41.8]} 23...
dxc4 {[%clk 0:01:38]} 24. Qxa5 {[%clk 0:01:35.7]} 24... Bc6 {[%clk 0:01:32.8]}
25. Kg3 {[%clk 0:01:13.7]} 25... Rb2 {[%clk 0:01:30.9]} 26. Qc3 {[%clk
0:01:05.8]} 26... Bd5 {[%clk 0:01:28.4]} 27. Rh1 {[%clk 0:01:03.8]} 27... Ra2
{[%clk 0:01:24.2]} 28. Ng5 {[%clk 0:00:56.7]} 28... h6 {[%clk 0:01:20.3]} 29.
Nh3 {[%clk 0:00:49.2]} 29... Rbb2 {[%clk 0:01:18]} 30. Rc1 {[%clk 0:00:49.8]}
30... Qb7 {[%clk 0:01:07.8]} 31. Nf4 {[%clk 0:00:49.3]} 31... Rb1 {[%clk
0:00:44.2]} 32. Rxb1 {[%clk 0:00:35.3]} 32... Qxb1 {[%clk 0:00:43.9]} 33. Qa5
{[%clk 0:00:35.7]} 33... Qxc2 {[%clk 0:00:40]} 34. Qd8+ {[%clk 0:00:36.1]} 34...
Kh7 {[%clk 0:00:39.2]} 35. Nh3 {[%clk 0:00:32.9]} 35... Qg6+ {[%clk 0:00:35.3]}
36. Ng5+ {[%clk 0:00:29.9]} 36... hxg5 {[%clk 0:00:35.4]} 37. hxg5 {[%clk
0:00:30.7]} 37... Qf5 {[%clk 0:00:31.5]} 38. Kh2 {[%clk 0:00:31.2]} 38... Rxf2
{[%clk 0:00:19.1]} 39. g6+ {[%clk 0:00:31.8]} 39... fxg6 {[%clk 0:00:10.3]} 40.
Rh3+ {[%clk 0:00:31.3]} 40... Qh5 {[%clk 0:00:11.2]} 41. Rxh5+ {[%clk
0:00:26.2]} 41... gxh5 {[%clk 0:00:12.1]} 42. Qa5 {[%clk 0:00:24.5]} 42... Rxg2+
{[%clk 0:00:11.7]} 43. Kh3 {[%clk 0:00:25.3]} 43... Rg4 {[%clk 0:00:12.3]} 44.
Qxa4 {[%clk 0:00:24]} 44... Rxd4 {[%clk 0:00:11.5]} 45. Qe8 {[%clk 0:00:22.5]}
45... Rd3+ {[%clk 0:00:11.8]} 46. Kh4 {[%clk 0:00:23.2]} 46... Bf3 {[%clk
0:00:10.5]} 47. a4 {[%clk 0:00:20.7]} 47... Rd4+ {[%clk 0:00:04.8]} 48. Kg3
{[%clk 0:00:20.7]} 48... Bg4 {[%clk 0:00:05]} 49. a5 {[%clk 0:00:19.9]} 49... c3
{[%clk 0:00:05.6]} 50. Qc8 {[%clk 0:00:19.8]} 50... Rd3+ {[%clk 0:00:05.3]} 51.
Kf2 {[%clk 0:00:19.8]} 51... Rd2+ {[%clk 0:00:05.3]} 52. Ke3 {[%clk 0:00:19.7]}
52... Re2+ {[%clk 0:00:05.1]} 53. Kd3 {[%clk 0:00:20.4]} 53... c2 {[%clk
0:00:04.8]} 54. a6 {[%clk 0:00:20.2]} 54... Rg2 {[%clk 0:00:03.4]} 55. a7 {[%clk
0:00:19.6]} 55... Bf3 {[%clk 0:00:03.9]} 56. Ke3 {[%clk 0:00:18.8]} 56... Bd5
{[%clk 0:00:03.7]} 57. Kd3 {[%clk 0:00:13.2]} 57... h4 {[%clk 0:00:03.9]} 58.
Qc5 {[%clk 0:00:06.9]} 58... h3 {[%clk 0:00:03.9]} 59. Qa3 {[%clk 0:00:03.1]}
59... h2 {[%clk 0:00:04.3]} 60. Qc1 {[%clk 0:00:03.8]} 60... Rg1 {[%clk
0:00:04.1]} 61. Qf4 {[%clk 0:00:04.7]} 61... h1=Q {[%clk 0:00:04.3]} 62. Kxc2
{[%clk 0:00:05.6]} 62... Qe4+ {[%clk 0:00:04.4]} 63. Qxe4+ {[%clk 0:00:05.8]}
63... Bxe4+ {[%clk 0:00:05.3]} 64. Kc3 {[%clk 0:00:06.3]} 64... Ra1 {[%clk
0:00:06.2]} 65. Kd4 {[%clk 0:00:07.2]} 65... Rxa7 {[%clk 0:00:06.6]} 66. Kxe4
{[%clk 0:00:07.9]} 66... Ra4+ {[%clk 0:00:07.5]} 67. Kf3 {[%clk 0:00:08.6]}
67... Kg6 {[%clk 0:00:08.4]} 68. Ke3 {[%clk 0:00:09.5]} 68... Kf5 {[%clk
0:00:09.1]} 0-1

[Event "*** Titled Tuesday Blitz"]
[Site "Chess.com"]
[Date "2021.02.16"]
[Round "11"]
[White "Tactictic"]
[Black "mikolka1985"]
[Result "0-1"]
[WhiteElo "2425"]
[BlackElo "2609"]
[TimeControl "180+1"]
[EndTime "12:12:05 PST"]
[Termination "mikolka1985 won by checkmate"]

1. e4 {[%clk 0:03:00.9]} 1... e5 {[%clk 0:02:58.5]} 2. Nf3 {[%clk 0:02:57.2]}
2... Nc6 {[%clk 0:02:57.8]} 3. Bc4 {[%clk 0:02:55.2]} 3... Bc5 {[%clk
0:02:56.7]} 4. O-O {[%clk 0:02:30.6]} 4... Nf6 {[%clk 0:02:55.8]} 5. d3 {[%clk
0:02:28.9]} 5... d6 {[%clk 0:02:55.1]} 6. c3 {[%clk 0:02:27.3]} 6... a6 {[%clk
0:02:52.7]} 7. a4 {[%clk 0:02:27.1]} 7... O-O {[%clk 0:02:51.4]} 8. Re1 {[%clk
0:02:12.4]} 8... Ba7 {[%clk 0:02:50.4]} 9. h3 {[%clk 0:02:08.4]} 9... Ne7 {[%clk
0:02:49.2]} 10. d4 {[%clk 0:02:06.5]} 10... Ng6 {[%clk 0:02:48.2]} 11. Nbd2
{[%clk 0:02:04.9]} 11... c6 {[%clk 0:02:39.4]} 12. Bf1 {[%clk 0:02:01.3]} 12...
exd4 {[%clk 0:02:12.9]} 13. cxd4 {[%clk 0:01:56.4]} 13... Re8 {[%clk 0:02:12.7]}
14. e5 {[%clk 0:01:26.6]} 14... dxe5 {[%clk 0:02:10.8]} 15. dxe5 {[%clk
0:01:27.5]} 15... Nh5 {[%clk 0:02:04.4]} 16. Nc4 {[%clk 0:01:21.3]} 16... Qxd1
{[%clk 0:01:53.9]} 17. Rxd1 {[%clk 0:01:22.2]} 17... Be6 {[%clk 0:01:36.5]} 18.
Nd6 {[%clk 0:01:12.4]} 18... Red8 {[%clk 0:01:35.4]} 19. Bg5 {[%clk 0:01:07.9]}
19... Rd7 {[%clk 0:01:35.3]} 20. Ne4 {[%clk 0:01:01.5]} 20... Rxd1 {[%clk
0:01:30.8]} 21. Rxd1 {[%clk 0:01:02.4]} 21... Bd5 {[%clk 0:01:30.7]} 22. Bd3
{[%clk 0:00:42.9]} 22... Nhf4 {[%clk 0:01:28.5]} 23. Bb1 {[%clk 0:00:37.8]}
23... Ne6 {[%clk 0:01:25.8]} 24. Bc1 {[%clk 0:00:32.4]} 24... Nc5 {[%clk
0:01:18.8]} 25. Nxc5 {[%clk 0:00:24.9]} 25... Bxc5 {[%clk 0:01:18]} 26. Bxg6
{[%clk 0:00:22.9]} 26... hxg6 {[%clk 0:01:17.1]} 27. Ne1 {[%clk 0:00:17.9]}
27... Kf8 {[%clk 0:01:14.4]} 28. Nd3 {[%clk 0:00:17.8]} 28... Be7 {[%clk
0:01:11.8]} 29. Re1 {[%clk 0:00:17.5]} 29... Bb3 {[%clk 0:01:07]} 30. a5 {[%clk
0:00:16.4]} 30... Rd8 {[%clk 0:01:06.1]} 31. Nf4 {[%clk 0:00:11.5]} 31... g5
{[%clk 0:01:02.5]} 32. Ne2 {[%clk 0:00:10.4]} 32... Bb4 {[%clk 0:01:01.4]} 33.
Nc3 {[%clk 0:00:10.7]} 33... Bxa5 {[%clk 0:00:59.3]} 34. Bxg5 {[%clk 0:00:10.6]}
34... Rd3 {[%clk 0:00:59]} 35. Rc1 {[%clk 0:00:08]} 35... Be6 {[%clk 0:00:57.9]}
36. Be3 {[%clk 0:00:07.4]} 36... Bc7 {[%clk 0:00:55.5]} 37. Bc5+ {[%clk
0:00:06.1]} 37... Ke8 {[%clk 0:00:54.2]} 38. f4 {[%clk 0:00:06.8]} 38... Rd2
{[%clk 0:00:44.7]} 39. b4 {[%clk 0:00:04.7]} 39... Rb2 {[%clk 0:00:36.5]} 40.
Ne4 {[%clk 0:00:04]} 40... Bd5 {[%clk 0:00:35.9]} 41. Nf2 {[%clk 0:00:02.8]}
41... b6 {[%clk 0:00:34.1]} 42. Bd4 {[%clk 0:00:02.7]} 42... Rxb4 {[%clk
0:00:33.4]} 43. Bc3 {[%clk 0:00:03.4]} 43... Rxf4 {[%clk 0:00:32.5]} 44. Nd3
{[%clk 0:00:02.1]} 44... Rc4 {[%clk 0:00:30.9]} 45. Bd2 {[%clk 0:00:01.6]} 45...
Rxc1+ {[%clk 0:00:30]} 46. Bxc1 {[%clk 0:00:02.5]} 46... c5 {[%clk 0:00:29.3]}
47. Bb2 {[%clk 0:00:03]} 47... g6 {[%clk 0:00:25.8]} 48. Nf4 {[%clk 0:00:02.6]}
48... Bc4 {[%clk 0:00:24.1]} 49. g4 {[%clk 0:00:02.9]} 49... a5 {[%clk
0:00:23.4]} 50. h4 {[%clk 0:00:03.1]} 50... Bd8 {[%clk 0:00:19.8]} 51. h5 {[%clk
0:00:02.9]} 51... gxh5 {[%clk 0:00:19.8]} 52. gxh5 {[%clk 0:00:03.8]} 52... Bg5
{[%clk 0:00:19.7]} 53. Nh3 {[%clk 0:00:03.6]} 53... Be3+ {[%clk 0:00:19]} 54.
Kg2 {[%clk 0:00:02.9]} 54... Bd5+ {[%clk 0:00:18.6]} 55. Kg3 {[%clk 0:00:02.8]}
55... a4 {[%clk 0:00:18.3]} 56. Nf2 {[%clk 0:00:03.1]} 56... Bxf2+ {[%clk
0:00:17.1]} 57. Kxf2 {[%clk 0:00:04]} 57... Be4 {[%clk 0:00:17.1]} 58. Ke3
{[%clk 0:00:04.4]} 58... Bh7 {[%clk 0:00:16.4]} 59. Kf4 {[%clk 0:00:03]} 59...
b5 {[%clk 0:00:15.4]} 60. Kg5 {[%clk 0:00:03.1]} 60... b4 {[%clk 0:00:15.2]} 61.
Kh6 {[%clk 0:00:03.2]} 61... Bf5 {[%clk 0:00:14.4]} 62. Kg5 {[%clk 0:00:02.7]}
62... Bd3 {[%clk 0:00:13.9]} 63. Kf6 {[%clk 0:00:03]} 63... a3 {[%clk
0:00:13.2]} 64. Ba1 {[%clk 0:00:01.9]} 64... b3 {[%clk 0:00:12.7]} 65. e6 {[%clk
0:00:02.8]} 65... fxe6 {[%clk 0:00:12]} 66. Kxe6 {[%clk 0:00:01.8]} 66... b2
{[%clk 0:00:12.5]} 67. Bxb2 {[%clk 0:00:02.2]} 67... axb2 {[%clk 0:00:12.1]} 68.
Kd5 {[%clk 0:00:03.1]} 68... c4 {[%clk 0:00:11.8]} 69. Kc5 {[%clk 0:00:04]}
69... b1=Q {[%clk 0:00:11.8]} 70. Kd4 {[%clk 0:00:04.9]} 70... Qb2+ {[%clk
0:00:12]} 71. Kc5 {[%clk 0:00:05.2]} 71... c3 {[%clk 0:00:11]} 72. Kd5 {[%clk
0:00:06.1]} 72... c2 {[%clk 0:00:10.8]} 73. Ke6 {[%clk 0:00:07]} 73... c1=Q
{[%clk 0:00:11.2]} 74. h6 {[%clk 0:00:07.3]} 74... Qe3+ {[%clk 0:00:10.6]} 75.
Kd5 {[%clk 0:00:07.7]} 75... Qbd4+ {[%clk 0:00:10.1]} 76. Kc6 {[%clk 0:00:08.6]}
76... Qc5+ {[%clk 0:00:09.4]} 77. Kb7 {[%clk 0:00:08.9]} 77... Be4+ {[%clk
0:00:08.9]} 78. Kb8 {[%clk 0:00:08.7]} 78... Qb3# {[%clk 0:00:07.9]} 0-1